{"text_format":"2","workbook":"xlsx","n_sheets":4,"sheets":["Al-Jufra Municipality","Dirj Municipality","Alreyayna Municipality","Total"],"not_rendered":{"charts":0,"images":1,"macros":0,"external_links":0,"defined_names":2,"comments":0,"pivot_tables":0},"unopened":[],"bounds":{"document_bytes":16777216,"sheet_cells":100000,"run_cost":"one","rows_first":2000,"rows_last":500,"rows_between":2000,"halvings":0,"cell_chars":16384,"cell_head_chars":4096},"cells_cut":0,"cells_raw":0,"read":"whole","date_system":"1900"}

{"sheet":"Al-Jufra Municipality","index":0,"n_rows":53,"n_cols":6,"rows_kept":53,"cut":false,"hidden":false,"merged":[[4,5,5,5],[4,0,5,0],[4,1,5,1],[4,2,5,2],[4,3,5,3],[4,4,5,4]]}
[]
[null,"United Nations Development Program "]
["Project Name: ","Supply of Tailor's workshop's Operational requirements at Women Training Center (WTC) in Hun in Al-Jufra Municipality, Libya. "]
["Location : ","Al-Jufra/Libya"]
["Item","Description","Unit","Qty","Unit rate in US$","Total Amount in US$"]
[]
["A"]
[null,"Brief description of requested service"]
[null,"Supply of equipment and materials as described below"]
[null,"Provide a source of electricity for each equipment separately"]
[null,"Assembly and Install the sewing equipment"]
[null,"Test the machines after installation"]
[null,"Training on the use of all supplied equipment, including materials and tools"]
[1,"Training : \nThe supplier must train at least 4 trainees on how to use all the electrical appliances supplied and mentioned in this document, in addition to the supplier's obligation to provide fabric samples and all that is needed for training. and according to the approval of the UNDP's engineer. ","LS",1,null,{"$f":"E14*D14","v":0}]
[2,"Electrical Works : \nThe supplier shall provide and install the electrical connections and electrical sockets for each piece of supplied piece of equipment, according to the location of each piece of equipment in the building. Including wires and wire trunks (100 meters to 150 meters long) and according to the approval of the UNDP's engineer. ","LS",1,null,0]
[3,"Double-sided board: \nSupply Double-sided board 0.9*1.2, whiteboard with base and according to the approval of the UNDP's engineer. ","Piece",1,null,{"$f":"E16*D16","v":0}]
[4,"blackboard calligrapher : \nSupply blackboard calligrapher. Black, red and blue colors and according to the approval of the UNDP's engineer. ","Packet",10,null,0]
[5,"First aid kit:\nSupply First aid kit (Including first aid supplies). size 40 cm * 40 cm  and according to the approval of  the UNDP's engineer. ","Piece",2,null,0]
[6,"DRY CHEMICAL FIRE EXTINGUISHER:\nSupply fire cylinders medium size  and according to the approval of  the UNDP's engineer. ","Piece",3,null,0]
[7,"American satin fabric: \nSupply American satin fabric. Different colors, according to the approval of  the UNDP's engineer. ","Spool",2,null,0]
[8,"Tulle Fabrics: \nSupply Tulle Fabrics. different colors, according to the approval of  the UNDP's engineer. ","Spool",5,null,0]
[9,"Joubert Fabrics: \nSupply Joubert Fabrics. different colors, according to the approval of  the UNDP's engineer. ","Spool",2,null,0]
[10,"school uniform fabric: \nSupply school uniform fabric. Black or dark blue and, according to the approval of  the UNDP's engineer. ","Spool",2,null,{"$f":"E23*D23","v":0}]
[11,"Cloth rolling table : \nSupply cloth rolling table,2.8 m* 2 m, according to the approval of  the UNDP's engineer. ","Piece",1,null,{"$f":"E24*D24","v":0}]
[12,"Ironing board: : \nSupply Ironing board:,1.2 m* 0.4 m, according to the approval of  the UNDP's engineer. ","Piece",3,null,0]
[13,"Thermal scissors: \nSupply hot electric scissors, electric heating cloth cutter, cloth cutting tools according to the approval of  the UNDP's engineer. ","Piece",3,null,0]
[14,"Iron scissors: \nSupply iron scissors, Stainless Steel, according to the approval of  the UNDP's engineer. ","Piece",10,null,{"$f":"D27*E27","v":0}]
[15,"Hand Finished Scissors: \nSupply Hand Finished Scissors, Stainless Steel, according to the approval of  the UNDP's engineer. ","Piece",10,null,{"$f":"D28*E28","v":0}]
[16,"Design Rulers: \nSupply rulers, Used for measuring & cutting fabric strips, triangles, squares & rectangles, efferent size and according to the approval of  the UNDP's engineer. ","Piece",10,null,{"$f":"D29*E29","v":0}]
[17,"Clothes measuring meter: \nSupply clothes measuring meter, flexible fiberglass, 1 m  and according to the approval of  the UNDP's engineer. ","Piece",10,null,{"$f":"E30*D30","v":0}]
[18,"Chalk: \nSupply Chalk to mark stitching lines on the fabric. And according to the approval of  the UNDP's engineer. ","Packet",10,null,0]
[19,"Multi-shelves wardrobe: \nSupply Multi-shelves wardrobe, The number of shelves is not less than 20, and the dimensions of each shelf are 0.3 m * 0.3m .  according to the approval of  the UNDP's engineer. ","Piece",1,null,0]
[20,"Mannequin: \nSupply Mannequin display holder for clothes, dresses, and dresses to display in a standing position .  according to the approval of  the UNDP's engineer. ","Piece",8,null,0]
[21,"Zipper : \nSupply different size Zipper for Sewing,  according to the approval of  the UNDP's engineer. ","Piece",30,null,{"$f":"E34*D34","v":0}]
[22,"Magnetic lights: \nSupply Magnetic electric lamp to be installed on sewing machines  . according to the approval of  the UNDP's engineer. ","Piece",15,null,0]
[23,"Overlock machine : \nSupply overlock machine , 3-5 strings, Max Stitch Width 4mm, Highest Speed 7000 S.P.M Operation Modes Full Automatic, Semi-Automatic, Power: 110-220V 50-60HZ 250W  and according to the approval of  the UNDP's engineer. ","Piece",2,null,0]
[24,"Zigzag sewing and embroidery machine : \nSupply Zigzag sewing and embroidery machine, in 25 different stitches, easy stitch selection, Control stitch distance, Installing buttons, Installing a zipper, sewing light . according to the approval of  the UNDP's engineer. ","Piece",3,null,0]
[25,"Trainees chairs : \nSupply trainees chairs, , black color, wrapped in sponge, complete with all fitting Furniture shall be ready to be used. according to the approval of  the UNDP's engineer. ","Piece",15,null,0]
[26,"Cotton sewing machine : \nSupply cotton sewing machine, Single Needle Sewing Machine, Operation Mode: Automatic, Max Stitch Length: 5mm, Max Sewing Speed: 4000-5000 (stitch/min),Power: 110-220V 50-60HZ 250W, and according to the approval of  the UNDP's engineer.  ((Half of the machines have an  external muffler motor and the rest are internal motors))","Piece",11,null,0]
[27," Sewing Pins : \nSupply  Sewing Pins, 34mm x 0.52mm,(Suitable for light, medium and heavy fabrics)Iron and according to the approval of  the UNDP's engineer. ","Packet",15,null,0]
[28,"Buttons : \nSupply buttons, different colors & size, and according to the approval of  the UNDP's engineer. ","Packet",10,null,0]
[29,"Hand sewing needles : \nSupply  hand sewing needles, (Suitable for light, medium and heavy fabrics),Iron and according to the approval of  the UNDP's engineer. ","Packet",15,null,0]
[30,"plastic thread regular machine: \nSupply plastic thread regular machine, Transparent and according to the approval of  the UNDP's engineer. ","Packet",8,null,0]
[31,"Sewing machine wire: \nSupply  sewing machine wire, different colors and and according to the approval of  the UNDP's engineer. ","Packet",8,null,0]
[32,"Sewing machine needles: \nSupply sewing machine needles (Suitable for light, medium and heavy fabrics), different size and according to the approval of  the UNDP's engineer. ","Packet",30,null,0]
[33,"Carton's Design : \nSupply Carton's Design 70 mm*100 mm and according to the approval of  the UNDP's engineer. ","Piece",50,null,0]
[34,"Overlock machine wire: \nSupply overlock machine wire, different colors and according to the approval of  the UNDP's engineer. ","Spool",15,null,0]
[35,"Steam iron: \nSupply Steam iron, 3.5 L With Steam Iron And Teflon Shoe, 220 v, and according to the approval of  the UNDP's engineer. ","Piece",2,null,0]
[36,"Vaseline Double Face: \nSupply Vaseline Double Face, Big size , For more details see the picture  and according to the approval of  the UNDP's engineer. ","Piece",10,null,0]
[37,"Panama sewing machine (manual machine) : \nSupply panama sewing machine With all accessories including the table, and according to the approval of  the UNDP's engineer. ((Independent electric motors must be supplied with these machines for future installation))","Piece",3,null,0]
[38,"Fluca: \nSupply fluca, For more details see the picture and according to the approval of  the UNDP's engineer. ","Piece",15,null,{"$f":"D51*E51","v":0}]
[39,"Straight Blade Cloth Cutting Machine: \nSupply Straight Blade Cloth Cutting Machine, different fabric Type, Automatic Grade, Motor Frequency: Heavy gauge copper winding, 750w, 220v , 8 In\", and according to the approval of  the UNDP's engineer. ","Piece",1,null,0]
[null,"TOTAL ",null,null,null,{"$f":"SUM(F9:F52)","v":0}]

{"sheet":"Dirj Municipality","index":1,"n_rows":53,"n_cols":6,"rows_kept":53,"cut":false,"hidden":false,"merged":[[4,4,5,4],[4,5,5,5],[4,0,5,0],[4,1,5,1],[4,2,5,2],[4,3,5,3]]}
[]
[null,"United Nations Development Program "]
["Project Name: ","Supply of Tailor's workshop's Operational requirements at Women Training Center (WTC) in Dirj Municipilaty, Libya. "]
["Location : ","Dirj /Libya"]
["Item","Description","Unit","Qty","Unit rate in US$","Total Amount in US$"]
[]
["A"]
[null,"Brief description of requested service"]
[null,"Supply of equipment and materials as described below"]
[null,"Provide a source of electricity for each equipment separately"]
[null,"Assembly and Install the sewing equipment"]
[null,"Test the machines after installation"]
[null,"Training on the use of all supplied equipment, including materials and tools"]
[1,"Training : \nThe supplier must train at least 4 trainees on how to use all the electrical appliances supplied and mentioned in this document, in addition to the supplier's obligation to provide fabric samples and all that is needed for training. and according to the approval of the UNDP's engineer. ","LS",1,null,{"$f":"E14*D14","v":0}]
[2,"Electrical Works : \nThe supplier shall provide and install the electrical connections and electrical sockets for each piece of supplied piece of equipment, according to the location of each piece of equipment in the building. Including wires and wire trunks (100 meters to 150 meters long) and according to the approval of the UNDP's engineer. ","LS",1,null,0]
[3,"Double-sided board: \nSupply Double-sided board 0.9*1.2, whiteboard with base and according to the approval of the UNDP's engineer. ","Piece",1,null,0]
[4,"blackboard calligrapher : \nSupply blackboard calligrapher. Black, red and blue colors and according to the approval of the UNDP's engineer. ","Packet",10,null,0]
[5,"First aid kit:\nSupply First aid kit (Including first aid supplies). size 40 cm * 40 cm  and according to the approval of  the UNDP's engineer. ","Piece",2,null,0]
[6,"DRY CHEMICAL FIRE EXTINGUISHER:\nSupply fire cylinders medum size  and according to the approval of  the UNDP's engineer. ","Piece",3,null,0]
[7,"American satin fabric: \nSupply american satin fabric. Different colors, according to the approval of  the UNDP's engineer. ","Spool",2,null,0]
[8,"Tulle Fabrics: \nSupply Tulle Fabrics. different colors, according to the approval of  the UNDP's engineer. ","Spool",5,null,0]
[9,"Joubert Fabrics: \nSupply Joubert Fabrics. different colors, according to the approval of  the UNDP's engineer. ","Spool",2,null,0]
[10,"school uniform fabric: \nSupply school uniform fabric. Black or dark blueand, according to the approval of  the UNDP's engineer. ","Spool",2,null,0]
[11,"Cloth rolling table : \nSupply cloth rolling table,2.8 m* 2 m, according to the approval of  the UNDP's engineer. ","Piece",1,null,0]
[12,"Ironing board: : \nSupplyIroning board:,1.2 m* 0.4 m, according to the approval of  the UNDP's engineer. ","Piece",3,null,0]
[13,"Thermal scissors: \nSupply hot electric scissors, electric heating cloth cutter, cloth cutting tools according to the approval of  the UNDP's engineer. ","Piece",3,null,0]
[14,"Iron scissors: \nSupply iron scissors, Stainless Steel, according to the approval of  the UNDP's engineer. ","Piece",10,null,{"$f":"D27*E27","v":0}]
[15,"Hand Finished Scissors: \nSupply Hand Finished Scissors, Stainless Steel, according to the approval of  the UNDP's engineer. ","Piece",10,null,{"$f":"D28*E28","v":0}]
[16,"Design Rulers: \nSupply rulers,Used for measuring & cutting fabric strips, triangles, squares & rectangles,defferent size and according to the approval of  the UNDP's engineer. ","Piece",10,null,{"$f":"D29*E29","v":0}]
[17,"Clothes measuring meter: \nSupply clothes measuring meter,flexible fiberglass, 1 m  and according to the approval of  the UNDP's engineer. ","Piece",10,null,{"$f":"E30*D30","v":0}]
[18,"Chalk: \nSupply Chalk to mark stitching lines on the fabric.and according to the approval of  the UNDP's engineer. ","Packet",10,null,0]
[19,"Multi-shelves wardrobe: \nSupply Multi-shelves wardrobe,The number of shelves is not less than 20, and the dimensions of each shelf are 0.3 m * 0.3m .  according to the approval of  the UNDP's engineer. ","Piece",1,null,0]
[20,"Mannequin: \nSupply Mannequin display holder for clothes, dresses, and dresses to display in a standing position .  according to the approval of  the UNDP's engineer. ","Piece",8,null,0]
[21,"Zipper : \nSupply different size Zipper for Sewing,  according to the approval of  the UNDP's engineer. ","Piece",30,null,0]
[22,"Magnetic lights: \nSupply Magnetic electric lamp to be installed on sewing machines  . according to the approval of  the UNDP's engineer. ","Piece",15,null,0]
[23,"Overlock machine : \nSupply overlock machine , 3-5 strings, Max Stitch Width 4mm, Highest Speed 7000 S.P.M Operation Modes Full Automatic, Semi-Automatic,Power: 110-220V 50-60HZ 250W  and according to the approval of  the UNDP's engineer. ","Piece",2,null,0]
[24,"Zigzag sewing and embroidery machine : \nSupply Zigzag sewing and embroidery machine,min 25 different stitches, easy stitch selection, Control stitch distance,Installing buttons, Installing a zipper,sewing light . according to the approval of  the UNDP's engineer. ","Piece",3,null,0]
[25,"Trainees chairs : \nSupply trainees chairs, , black color, wrapped in sponge, complete with all fitting Furniture shall be ready to be used. according to the approval of  the UNDP's engineer. ","Piece",15,null,0]
[26,"Cotton sewing machine : \nSupply cotton sewing machine,Single Needle Sewing Machine, Operation Mode: Automatic, Max Stitch Length: 5mm, Max Sewing Speed: 4000-5000 (stitch/min),Power: 110-220V 50-60HZ 250W, and according to the approval of  the UNDP's engineer.  ((Half of the machines have an  external muffler motor and the rest are internal motors))","Piece",11,null,0]
[27," Sewing Pins : \nSupply  Sewing Pins, 34mm x 0.52mm,(Suitable for light, medium and heavy fabrics)Iron and according to the approval of  the UNDP's engineer. ","Packet",15,null,0]
[28,"Buttons : \nSupply buttons,different colors & size, and according to the approval of  the UNDP's engineer. ","Packet",10,null,0]
[29,"Hand sewing needles : \nSupply  hand sewing needles, (Suitable for light, medium and heavy fabrics),Iron and according to the approval of  the UNDP's engineer. ","Packet",15,null,0]
[30,"plastic thread regular machine: \nSupply plastic thread regular machine, Transparant and according to the approval of  the UNDP's engineer. ","Packet",8,null,0]
[31,"Sewing machine wire: \nSupply  sewing machine wire, different colors and and according to the approval of  the UNDP's engineer. ","Packet",8,null,0]
[32,"Sewing machine needles: \nSupply sewing machine needles (Suitable for light, medium and heavy fabrics), different size and according to the approval of  the UNDP's engineer. ","Packet",30,null,0]
[33,"Carton's Design : \nSupply Carton's Design 70 mm*100 mm and according to the approval of  the UNDP's engineer. ","Piece",50,null,0]
[34,"Overlock machine wire: \nSupply overlock machine wire, different colors and according to the approval of  the UNDP's engineer. ","Spool",15,null,0]
[35,"Steam iron: \nSupply Steam iron, 3.5 L With Steam Iron And Teflon Shoe, 220 v, and according to the approval of  the UNDP's engineer. ","Piece",2,null,0]
[36,"Vaseline Double Face: \nSupply Vaseline Double Face,Big size , For more details see the picture  and according to the approval of  the UNDP's engineer. ","Piece",10,null,0]
[37,"Panama sewing machine (manual machine) : \nSupply panama sewing machine With all accessories including the table, and according to the approval of  the UNDP's engineer. ((Independent electric motors must be supplied with these machines for future installation))","Piece",3,null,0]
[38,"Fluca: \nSupply fluca, For more details see the picture and according to the approval of  the UNDP's engineer. ","Piece",15,null,{"$f":"D51*E51","v":0}]
[39,"Straight Blade Cloth Cutting Machine: \nSupply Straight Blade Cloth Cutting Machine, different fabric Type, Automatic Grade, Motor Frequency:Heavy guage copper winding, 750w, 220v , 8 In\", and according to the approval of  the UNDP's engineer. ","Piece",1,null,0]
[null,"TOTAL ",null,null,null,{"$f":"SUM(F9:F52)","v":0}]

{"sheet":"Alreyayna Municipality","index":2,"n_rows":53,"n_cols":6,"rows_kept":53,"cut":false,"hidden":false,"merged":[[4,5,5,5],[4,3,5,3],[4,4,5,4],[4,0,5,0],[4,1,5,1],[4,2,5,2]]}
[]
[null,"United Nations Development Program "]
["Project Name: ","Supply of Tailor's workshop's Operational requirements at Women Training Center (WTC) in Alreyayna Municipality, Libya."]
["Location : ","Alreyayna /Libya"]
["Item","Description","Unit","Qty","Unit rate in US$","Total Amount in US$"]
[]
["A"]
[null,"Brief description of requested service"]
[null,"Supply of equipment and materials as described below"]
[null,"Provide a source of electricity for each equipment separately"]
[null,"Assembly and Install the sewing equipment"]
[null,"Test the machines after installation"]
[null,"Training on the use of all supplied equipment, including materials and tools"]
[1,"Training : \nThe supplier must train at least 4 trainees on how to use all the electrical appliances supplied and mentioned in this document, in addition to the supplier's obligation to provide fabric samples and all that is needed for training. and according to the approval of the UNDP's engineer. ","LS",1,null,{"$f":"E14*D14","v":0}]
[2,"Electrical Works : \nThe supplier shall provide and install the electrical connections and electrical sockets for each piece of supplied piece of equipment, according to the location of each piece of equipment in the building. Including wires and wire trunks (100 meters to 150 meters long) and according to the approval of the UNDP's engineer. ","LS",1,null,0]
[3,"Double-sided board: \nSupply Double-sided board 0.9*1.2, whiteboard with base and according to the approval of the UNDP's engineer. ","Piece",1,null,0]
[4,"blackboard calligrapher : \nSupply blackboard calligrapher. Black, red and blue colors and according to the approval of the UNDP's engineer. ","Packet",10,null,0]
[5,"First aid kit:\nSupply First aid kit (Including first aid supplies). size 40 cm * 40 cm  and according to the approval of  the UNDP's engineer. ","Piece",2,null,0]
[6,"DRY CHEMICAL FIRE EXTINGUISHER:\nSupply fire cylinders medum size  and according to the approval of  the UNDP's engineer. ","Piece",3,null,0]
[7,"American satin fabric: \nSupply american satin fabric. Different colors, according to the approval of  the UNDP's engineer. ","Spool",2,null,0]
[8,"Tulle Fabrics: \nSupply Tulle Fabrics. different colors, according to the approval of  the UNDP's engineer. ","Spool",5,null,0]
[9,"Joubert Fabrics: \nSupply Joubert Fabrics. different colors, according to the approval of  the UNDP's engineer. ","Spool",2,null,0]
[10,"school uniform fabric: \nSupply school uniform fabric. Black or dark blueand, according to the approval of  the UNDP's engineer. ","Spool",2,null,0]
[11,"Cloth rolling table : \nSupply cloth rolling table,2.8 m* 2 m, according to the approval of  the UNDP's engineer. ","Piece",1,null,0]
[12,"Ironing board: : \nSupplyIroning board:,1.2 m* 0.4 m, according to the approval of  the UNDP's engineer. ","Piece",3,null,0]
[13,"Thermal scissors: \nSupply hot electric scissors, electric heating cloth cutter, cloth cutting tools according to the approval of  the UNDP's engineer. ","Piece",3,null,0]
[14,"Iron scissors: \nSupply iron scissors, Stainless Steel, according to the approval of  the UNDP's engineer. ","Piece",10,null,{"$f":"D27*E27","v":0}]
[15,"Hand Finished Scissors: \nSupply Hand Finished Scissors, Stainless Steel, according to the approval of  the UNDP's engineer. ","Piece",10,null,{"$f":"D28*E28","v":0}]
[16,"Design Rulers: \nSupply rulers,Used for measuring & cutting fabric strips, triangles, squares & rectangles,defferent size and according to the approval of  the UNDP's engineer. ","Piece",10,null,{"$f":"D29*E29","v":0}]
[17,"Clothes measuring meter: \nSupply clothes measuring meter,flexible fiberglass, 1 m  and according to the approval of  the UNDP's engineer. ","Piece",10,null,{"$f":"E30*D30","v":0}]
[18,"Chalk: \nSupply Chalk to mark stitching lines on the fabric.and according to the approval of  the UNDP's engineer. ","Packet",10,null,0]
[19,"Multi-shelves wardrobe: \nSupply Multi-shelves wardrobe,The number of shelves is not less than 20, and the dimensions of each shelf are 0.3 m * 0.3m .  according to the approval of  the UNDP's engineer. ","Piece",1,null,0]
[20,"Mannequin: \nSupply Mannequin display holder for clothes, dresses, and dresses to display in a standing position .  according to the approval of  the UNDP's engineer. ","Piece",8,null,0]
[21,"Zipper : \nSupply different size Zipper for Sewing,  according to the approval of  the UNDP's engineer. ","Piece",30,null,0]
[22,"Magnetic lights: \nSupply Magnetic electric lamp to be installed on sewing machines  . according to the approval of  the UNDP's engineer. ","Piece",15,null,0]
[23,"Overlock machine : \nSupply overlock machine , 3-5 strings, Max Stitch Width 4mm, Highest Speed 7000 S.P.M Operation Modes Full Automatic, Semi-Automatic,Power: 110-220V 50-60HZ 250W  and according to the approval of  the UNDP's engineer. ","Piece",2,null,0]
[24,"Zigzag sewing and embroidery machine : \nSupply Zigzag sewing and embroidery machine,min 25 different stitches, easy stitch selection, Control stitch distance,Installing buttons, Installing a zipper,sewing light . according to the approval of  the UNDP's engineer. ","Piece",3,null,0]
[25,"Trainees chairs : \nSupply trainees chairs, , black color, wrapped in sponge, complete with all fitting Furniture shall be ready to be used. according to the approval of  the UNDP's engineer. ","Piece",15,null,0]
[26,"Cotton sewing machine : \nSupply cotton sewing machine,Single Needle Sewing Machine, Operation Mode: Automatic, Max Stitch Length: 5mm, Max Sewing Speed: 4000-5000 (stitch/min),Power: 110-220V 50-60HZ 250W, and according to the approval of  the UNDP's engineer.  ((Half of the machines have an  external muffler motor and the rest are internal motors))","Piece",11,null,0]
[27," Sewing Pins : \nSupply  Sewing Pins, 34mm x 0.52mm,(Suitable for light, medium and heavy fabrics)Iron and according to the approval of  the UNDP's engineer. ","Packet",15,null,0]
[28,"Buttons : \nSupply buttons,different colors & size, and according to the approval of  the UNDP's engineer. ","Packet",10,null,0]
[29,"Hand sewing needles : \nSupply  hand sewing needles, (Suitable for light, medium and heavy fabrics),Iron and according to the approval of  the UNDP's engineer. ","Packet",15,null,0]
[30,"plastic thread regular machine: \nSupply plastic thread regular machine, Transparant and according to the approval of  the UNDP's engineer. ","Packet",8,null,0]
[31,"Sewing machine wire: \nSupply  sewing machine wire, different colors and and according to the approval of  the UNDP's engineer. ","Packet",8,null,0]
[32,"Sewing machine needles: \nSupply sewing machine needles (Suitable for light, medium and heavy fabrics), different size and according to the approval of  the UNDP's engineer. ","Packet",30,null,0]
[33,"Carton's Design : \nSupply Carton's Design 70 mm*100 mm and according to the approval of  the UNDP's engineer. ","Piece",50,null,0]
[34,"Overlock machine wire: \nSupply overlock machine wire, different colors and according to the approval of  the UNDP's engineer. ","Spool",15,null,0]
[35,"Steam iron: \nSupply Steam iron, 3.5 L With Steam Iron And Teflon Shoe, 220 v, and according to the approval of  the UNDP's engineer. ","Piece",2,null,0]
[36,"Vaseline Double Face: \nSupply Vaseline Double Face,Big size , For more details see the picture  and according to the approval of  the UNDP's engineer. ","Piece",10,null,0]
[37,"Panama sewing machine (manual machine) : \nSupply panama sewing machine With all accessories including the table, and according to the approval of  the UNDP's engineer. ((Independent electric motors must be supplied with these machines for future installation))","Piece",3,null,0]
[38,"Fluca: \nSupply fluca, For more details see the picture and according to the approval of  the UNDP's engineer. ","Piece",15,null,{"$f":"D51*E51","v":0}]
[39,"Straight Blade Cloth Cutting Machine: \nSupply Straight Blade Cloth Cutting Machine, different fabric Type, Automatic Grade, Motor Frequency:Heavy guage copper winding, 750w, 220v , 8 In\", and according to the approval of  the UNDP's engineer. ","Piece",1,null,0]
[null,"TOTAL ",null,null,null,{"$f":"SUM(F9:F52)","v":0}]

{"sheet":"Total","index":3,"n_rows":7,"n_cols":3,"rows_kept":7,"cut":false,"hidden":false,"merged":[[2,0,3,0],[2,1,3,1],[2,2,3,2],[6,0,6,1]]}
[]
["Ref","Description of Deliverables","Price in USD"]
[1,"LOT 1: Supply of Tailor's workshop's Operational requirements at Women Training Center (WTC) in Hun in Al-Jufra Municipality, Libya",{"$f":"Total!F53","v":0}]
[]
[2,"LOT 2 Supply of Tailor's workshop's Operational requirements at Women Training Center (WTC) in Derj Municipality, Libya",{"$f":"'Dirj Municipality'!F53","v":0}]
[3,"LOT 2: Supply of Tailor's workshop's Operational requirements at Women Training Center (WTC) in Alreyayna Municipality, Libya",{"$f":"'Alreyayna Municipality'!F53","v":0}]
["Grand Total: L1+L2+L3",null,{"$f":"C3+C5+C6","v":0}]